bitfinex/quotes_ETHUSD_20251230
["timestamp","ask_amount","ask_price","bid_price","bid_amount"]
[1767103121353,0.1552,2987.5,2986.8,2.3605]
[1767103121533,0.1542,2987.3,2986.8,2.3605]
[1767103121838,0.1542,2987.3,2986.4,4.22748956]
[1767103122014,0.1542,2987.3,2986.4,6.58698956]
[1767103122208,3.34739238,2987.4,2986.5,2.3595]
[1767103122209,0.1502,2987.1,2986.5,2.3595]
[1767103122413,0.1502,2987.1,2986.4,0.879]
[1767103124743,3.34772951,2987.1,2986.5,2.3595]
[1767103124913,0.1502,2987.0,2986.5,2.3595]
[1767103131743,3.34784065,2987.0,2986.5,2.3595]
[1767103132043,0.1502,2986.9,2986.5,2.3595]
[1767103136067,0.1502,2986.9,2986.5,2.3605]
[1767103141248,0.07214626,2986.9,2986.5,2.3605]
[1767103141450,0.002,2987.0,2986.5,2.3605]
[1767103141656,0.002,2987.0,2986.7,2.288]
[1767103141855,0.0741,2987.0,2986.7,2.288]
[1767103142963,0.0741,2987.0,2986.5,0.001]
[1767103143166,0.0721,2986.9,2986.5,0.001]
[1767103143366,0.0721,2986.9,2986.5,2.289]
[1767103143561,0.0721,2986.9,2986.5,0.001]
[1767103149769,0.0741,2986.9,2986.5,0.001]
[1767103152092,0.34439432,2986.9,2986.2,2.288]
[1767103152390,0.0701,2986.8,2986.2,2.288]
[1767103152797,0.0701,2986.8,2986.3,2.32148625]
[1767103156803,0.0701,2986.8,2986.3,2.288]
[1767103157896,0.0701,2986.8,2986.3,2.289]
[1767103158101,0.0701,2986.8,2986.3,2.32248625]
[1767103158464,0.0701,2986.8,2986.3,2.289]
[1767103160402,0.0701,2986.8,2986.3,3.34244655]
[1767103160587,0.0701,2986.8,2986.4,2.2927]
[1767103162492,0.0721,2986.9,2986.4,2.2927]
[1767103164495,1.65488108,2989.7,2986.8,2.2927]
[1767103164496,3.3474523,2987.4,2986.8,2.2927]
[1767103164672,0.0721,2987.4,2986.9,2.2927]
[1767103165680,0.0721,2987.4,2986.4,3.34848925]
[1767103165681,0.0721,2987.4,2986.4,2.2927]
[1767103166695,0.0721,2987.2,2986.4,2.2927]
[1767103169301,3.34764064,2987.2,2986.4,2.2927]
[1767103169471,0.0721,2987.1,2986.5,2.2927]
[1767103169673,0.0721,2987.7,2986.7,4.89675572]
[1767103169884,0.0721,2987.5,2986.8,2.2927]
[1767103170811,3.41940875,2987.5,2986.8,2.2927]
[1767103170985,3.34730875,2987.5,2986.8,2.2927]
[1767103171186,0.0721,2987.4,2986.8,2.2927]
[1767103172303,0.002,2987.2,2986.8,2.2927]
[1767103172513,0.06598204,2987.4,2986.8,2.2927]
[1767103173716,3.41338197,2987.4,2986.8,2.2927]
[1767103174106,0.068,2987.3,2986.8,2.2927]
[1767103176018,0.068,2987.2,2986.8,2.2927]
[1767103180303,0.068,2987.2,2986.8,2.2937]
[1767103182187,0.067,2987.1,2986.6,2.2927]
[1767103184103,0.067,2987.3,2986.6,2.2927]
[1767103185325,0.067,2987.3,2986.8,2.2927]
[1767103185512,0.002,2987.4,2987.2,2.2927]
[1767103185828,0.069,2987.4,2987.0,2.2927]
[1767103186122,3.34941201,2987.4,2986.5,4.22735761]
[1767103186320,0.067,2987.3,2986.7,2.4177]
[1767103187296,0.067,2987.2,2986.5,3.2967]
[1767103187528,0.067,2987.2,2986.5,2.4177]
[1767103188336,0.067,2987.1,2986.5,2.4177]
[1767103189134,0.067,2987.1,2986.5,2.4187]
[1767103189840,3.34779575,2987.1,2986.5,2.4187]
[1767103190038,0.067,2987.0,2986.5,2.4187]
[1767103192134,0.067,2986.9,2986.5,2.4187]
[1767103192443,0.067,2986.9,2986.3,2.4187]
[1767103193031,0.067,2986.9,2986.1,2.4177]
[1767103194245,3.34806481,2986.8,2986.1,2.4177]
[1767103194448,0.065,2986.6,2986.1,2.4177]
[1767103196240,0.065,2986.6,2985.9,0.001]
[1767103196410,0.065,2986.6,2985.9,2.4187]
[1767103197039,0.065,2986.6,2986.0,0.001]
[1767103197203,0.065,2986.6,2986.0,2.4187]
[1767103197937,0.37480655,2986.6,2986.0,2.4187]
[1767103198127,0.065,2986.5,2986.0,2.4187]
[1767103198670,0.065,2986.5,2985.9,0.001]
[1767103198671,4.89675572,2986.5,2985.9,0.001]
[1767103198837,4.89675572,2986.5,2985.6,2.4671]
[1767103198838,0.064,2986.4,2985.6,2.4671]
[1767103199026,0.063,2986.3,2985.8,2.4661]
[1767103200420,1.40615623,2986.4,2985.8,7.36285572]
[1767103200723,0.063,2986.3,2985.9,2.4661]
[1767103201952,4.89675572,2986.2,2985.6,0.001]
[1767103202151,0.062,2986.0,2985.1,2.4661]
[1767103202315,0.062,2985.8,2985.1,2.4661]
[1767103202518,0.062,2985.6,2984.8,2.4661]
[1767103202721,0.062,2985.5,2984.8,2.4661]
[1767103203137,0.062,2985.5,2985.0,2.4661]
[1767103203451,0.062,2985.4,2985.0,2.4661]
[1767103203950,3.34921532,2985.8,2985.0,2.4661]
[1767103204156,3.34882893,2986.2,2985.4,2.4661]
[1767103204447,3.34886564,2986.1,2985.1,2.4661]
[1767103204647,0.879,2986.3,2985.1,2.4661]
[1767103204648,6.69747504,2986.2,2985.1,2.4661]
[1767103207722,6.69747504,2986.2,2984.8,0.88]
[1767103207723,4.22767494,2986.3,2985.5,2.4661]
[1767103207917,4.22767494,2986.3,2985.0,4.90349295]
[1767103207918,4.2276323,2986.3,2985.8,2.4661]
[1767103208548,7.5762646,2986.3,2985.5,2.4661]
[1767103208747,3.34884967,2986.1,2985.3,2.4661]
[1767103211170,4.15912843,2986.2,2985.4,2.4661]
[1767103211367,4.15912843,2986.2,2985.4,2.49959634]
[1767103217070,4.15912843,2986.2,2985.5,0.03349522]
[1767103217275,4.15912843,2986.2,2985.5,2.30649522]
[1767103217579,0.83867549,2986.1,2985.5,2.30649522]
[1767103218773,4.18759216,2986.1,2985.5,2.30649522]
[1767103219771,4.18759216,2986.1,2985.5,2.273]
[1767103220549,7.53650883,2986.1,2985.3,0.001]
[1767103221064,7.53650883,2986.1,2985.3,2.274]
[1767103221272,0.75365088,2986.0,2985.3,2.274]
[1767103222078,0.75365088,2986.0,2985.3,0.001]
[1767103223243,0.75365088,2986.0,2985.3,2.274]
[1767103223465,0.879,2986.1,2985.5,2.273]
[1767103223644,0.879,2986.1,2985.3,2.274]
[1767103224545,3.34896182,2986.0,2985.3,2.274]
[1767103225170,4.2278804,2986.1,2985.3,2.274]
[1767103226773,7.5767608,2986.1,2985.3,2.274]
[1767103226946,0.75787608,2986.0,2985.3,2.274]
[1767103228887,3.34907398,2985.9,2985.3,2.274]
[1767103229384,4.1068507,2986.0,2985.3,2.274]
[1767103230080,4.1068507,2986.0,2985.3,0.001]
[1767103231180,7.45582532,2986.0,2985.3,0.001]
[1767103231485,0.83348253,2985.9,2985.3,0.001]
[1767103233894,3.34918614,2985.8,2985.3,0.001]
[1767103236465,6.69837228,2985.8,2985.3,0.001]
[1767103240677,10.04755842,2985.8,2985.3,0.001]
[1767103240996,10.04755842,2985.8,2985.0,0.001]
[1767103241202,1.08810409,2985.7,2985.0,0.001]
[1767103241394,0.879,2985.6,2985.0,0.001]
[1767103241990,0.01007201,2985.5,2984.4,0.001]
[1767103242297,4.90349295,2985.4,2984.4,0.001]
[1767103242471,0.01007201,2985.3,2984.4,0.001]
[1767103242672,6.69994304,2985.1,2984.4,0.001]
[1767103242872,0.879,2985.0,2984.4,0.001]
[1767103244883,3.35019598,2984.9,2984.4,0.001]
[1767103246491,4.22913762,2985.0,2984.4,0.001]
[1767103246690,4.22913762,2985.0,2984.4,2.3685]
[1767103246893,5.03618448,2985.0,2984.4,2.3685]
[1767103248913,0.4913565,2985.2,2984.4,2.3685]
[1767103249107,3.67612773,2986.4,2984.6,2.3675]
[1767103249108,0.879,2985.3,2984.6,2.3675]
[1767103249902,0.879,2985.3,2984.4,2.3685]
[1767103251088,6.6997186,2985.2,2984.4,2.3685]
[1767103252102,6.6997186,2985.2,2984.4,0.001]
[1767103253621,14.95307085,2985.2,2984.4,0.001]
[1767103253846,1.58320709,2985.1,2984.4,0.001]
[1767103253989,6.6997186,2985.2,2984.4,0.001]
[1767103254819,10.0515779,2985.2,2984.4,0.001]
[1767103256818,6.7017186,2985.2,2984.4,0.001]
[1767103259788,10.0515779,2985.2,2984.4,0.001]
[1767103260421,4.90349295,2985.0,2984.1,0.001]
[1767103261319,1.58441429,2985.1,2984.1,0.001]
[1767103261993,6.7001675,2985.0,2984.1,0.001]
[1767103262303,3.35008375,2985.0,2984.1,2.38111094]
[1767103262510,4.22908375,2985.0,2984.1,2.38111094]
[1767103262717,4.22908375,2985.0,2984.3,2.3466]
[1767103263096,4.22908375,2985.0,2984.4,0.001]
[1767103263307,4.22908375,2985.0,2984.4,2.3476]
[1767103263923,7.5791675,2985.0,2984.4,2.3476]
[1767103264129,7.5791675,2985.0,2984.4,0.001]
[1767103264422,4.22908375,2985.0,2984.4,0.001]
[1767103264731,7.5791675,2985.0,2984.4,0.001]
[1767103265124,4.22908375,2985.0,2984.4,0.001]
[1767103265325,0.879,2985.0,2984.4,0.001]
[1767103265513,3.35000467,2985.1,2984.4,0.001]
[1767103265514,3.35005381,2985.1,2984.7,2.3466]
[1767103266024,3.35005381,2985.1,2984.4,8.42636201]
[1767103266326,6.70172976,2985.2,2984.4,3.11363291]
[1767103266734,3.35186488,2985.2,2984.4,0.001]
[1767103266899,6.70172976,2985.2,2984.4,0.001]
[1767103267099,6.70172976,2985.2,2984.4,2.3476]
[1767103267299,7.58072976,2985.2,2984.4,2.3476]
[1767103267824,7.58072976,2985.2,2984.4,0.001]
[1767103268000,0.75807298,2985.1,2984.4,0.001]
[1767103268503,3.35008375,2985.0,2984.4,0.001]
[1767103271501,3.35002402,2985.1,2984.6,5.3127291]
[1767103271707,3.35002402,2985.1,2984.7,2.3466]
[1767103271922,3.35189096,2985.2,2984.7,2.3466]
[1767103272530,2.68893152,2985.5,2985.0,7.6593291]
[1767103272730,3.35100834,2986.0,2985.2,5.3127291]
[1767103272731,6.69814796,2985.9,2985.2,5.3127291]
[1767103272933,6.69814796,2985.9,2985.1,2.3466]
[1767103273103,6.69814796,2985.9,2985.0,5.3127291]
[1767103273303,6.69814796,2985.9,2984.9,2.3466]
[1767103273533,6.69859664,2985.7,2984.8,0.879]
[1767103274030,6.69859664,2985.7,2984.8,3.2256]
[1767103274227,6.68963633,2985.7,2984.8,3.2256]
[1767103274527,6.68963633,2985.7,2984.8,0.879]
[1767103274729,3.34911032,2985.9,2985.2,2.3466]
[1767103274904,4.0410145,2985.9,2985.2,2.3466]
[1767103275101,7.39012482,2985.9,2985.2,2.3466]
[1767103276706,0.002,2985.7,2985.2,2.3466]
[1767103278534,0.002,2985.7,2985.4,5.3127291]
[1767103278752,3.34911032,2985.9,2985.5,2.4632]
[1767103279318,3.34911032,2985.9,2985.2,2.4632]
[1767103279519,4.37591421,2985.9,2985.2,2.4632]
[1767103279720,4.37591421,2985.9,2985.0,5.3127291]
[1767103280024,3.34911032,2985.9,2985.0,5.3127291]
[1767103280225,3.34911032,2985.9,2985.0,8.66279327]
[1767103280535,0.002,2986.0,2985.0,8.66279327]
[1767103280536,3.35096182,2986.0,2985.1,2.4632]
[1767103280732,3.35096182,2986.0,2985.2,5.3127291]
[1767103281051,6.69992987,2986.0,2985.2,6.09032201]
[1767103281852,6.69992987,2986.0,2985.2,8.55352201]
[1767103282021,6.69992987,2986.0,2985.3,2.4632]
[1767103282212,3.35096182,2986.0,2985.3,2.4632]
[1767103282527,6.69992987,2986.0,2985.3,2.4632]
[1767103284838,3.35096182,2986.0,2985.3,2.4632]
[1767103285091,3.35096182,2986.0,2985.4,2.4632]
[1767103285674,3.35096182,2986.0,2985.5,2.4632]
[1767103285854,3.35096182,2986.0,2985.3,2.4632]
[1767103286260,0.002,2986.0,2985.3,2.4632]
[1767103286475,0.002,2986.0,2985.4,2.4632]
[1767103287054,0.002,2986.0,2985.7,2.4632]
[1767103287878,0.002,2986.0,2985.5,2.4632]
[1767103288271,0.002,2986.0,2985.5,7.7759291]
[1767103288982,0.002,2986.0,2985.6,2.4632]
[1767103289361,0.002,2986.0,2985.6,3.24079291]
[1767103290987,0.002,2986.0,2985.7,2.4632]
[1767103293396,0.002,2986.0,2985.4,2.4632]
[1767103296571,0.002,2986.2,2985.6,2.4632]
[1767103296778,0.002,2986.1,2985.6,2.4632]
[1767103296979,0.002,2986.1,2985.8,2.4632]
[1767103298089,0.002,2986.2,2985.8,2.4632]
[1767103298799,0.004,2986.4,2985.9,2.4632]
[1767103299465,0.002,2986.4,2985.1,0.001]
[1767103299664,0.002,2986.4,2983.6,0.1349928]
[1767103299665,0.17497768,2982.5,2980.4,0.01340123]
[1767103299899,0.17497768,2982.5,2979.9,0.44649364]
[1767103299900,0.17497768,2982.5,2981.0,0.01340123]
[1767103299901,1.19456825,2981.1,2981.0,0.01340123]
[1767103300113,1.19456825,2981.1,2980.5,0.00435364]
[1767103300114,2.98236089,2980.6,2980.5,0.01340123]
[1767103300268,0.48881723,2980.9,2980.8,0.01340123]
[1767103300595,0.25952256,2982.3,2980.8,0.01340123]
[1767103300596,0.89901063,2981.4,2981.3,0.01340123]
[1767103300800,0.82869397,2981.5,2981.4,0.01340123]
[1767103301009,0.82869397,2981.5,2981.0,2.0287871]
[1767103301010,0.4478,2981.8,2981.1,5.3127291]
[1767103301170,0.4478,2981.8,2981.0,2.01538587]
[1767103301171,0.4478,2981.8,2981.3,3.32333208]
[1767103301369,0.4478,2981.8,2981.0,2.04893166]
[1767103301570,0.4478,2981.8,2980.7,3.3422]
[1767103301801,0.4478,2981.8,2980.8,0.03354804]
[1767103301996,2.3817,2981.5,2980.7,3.3422]
[1767103302202,5.3127291,2981.2,2980.7,0.879]
[1767103302501,5.3127291,2981.2,2979.3,0.01340123]
[1767103302502,2.3817,2980.7,2979.9,2.4632]
[1767103302703,2.3817,2980.7,2980.0,0.24632]
[1767103303003,2.3817,2980.7,2979.6,2.4632]
[1767103304099,2.3817,2980.7,2979.6,5.81935359]
[1767103304302,2.3817,2980.7,2979.7,2.4632]
[1767103304499,2.3817,2980.7,2979.8,2.49675929]
[1767103304700,5.73667461,2980.7,2979.8,2.4632]
[1767103305006,2.3817,2980.6,2979.5,3.3422]
[1767103305302,2.3817,2980.6,2979.5,0.879]
[1767103305599,1.5842,2980.5,2979.5,0.001]
[1767103305803,1.5842,2980.5,2979.2,0.88]
[1767103306004,1.5842,2980.5,2979.2,4.23659695]
[1767103306201,0.88,2980.6,2979.2,4.23659695]
[1767103306202,1.1596,2980.2,2979.2,0.88]
[1767103306402,1.1596,2980.2,2979.2,3.3566038]
[1767103306604,1.1596,2980.2,2979.2,5.83406985]
[1767103307177,1.1596,2980.2,2979.2,3.39016985]
[1767103307476,1.1596,2980.2,2979.2,6.74677565]
[1767103307789,1.1596,2980.2,2979.3,3.11857757]
[1767103307976,1.1596,2980.2,2979.3,0.67467757]
[1767103308178,3.63487522,2980.4,2979.4,2.4439]
[1767103308370,0.2796,2980.3,2979.5,2.4439]
[1767103308905,0.2796,2980.3,2979.4,3.35633804]
[1767103308906,0.88,2980.6,2979.7,2.4439]
[1767103309103,0.88,2980.6,2979.9,2.4439]
[1767103309774,0.88,2980.6,2979.4,3.35633804]
[1767103309991,3.289,2980.6,2979.5,2.4439]
[1767103310303,2.409,2980.5,2979.6,0.03356155]
[1767103310504,2.409,2980.3,2979.5,2.4439]
[1767103311080,0.88,2980.3,2979.6,2.4439]
[1767103311273,0.88,2980.5,2979.6,2.4439]
[1767103311690,3.289,2980.5,2979.6,2.4439]
[1767103311911,3.35504252,2980.6,2979.6,2.4439]
[1767103311912,2.409,2980.4,2979.6,2.4439]
[1767103312104,2.409,2980.4,2979.5,3.3562502]
[1767103312105,2.409,2980.4,2979.7,3.02391502]
[1767103312492,2.409,2980.4,2979.7,2.4439]
[1767103312808,0.70568695,2980.3,2979.7,2.4439]
[1767103312991,0.70568695,2980.2,2979.7,2.4439]
[1767103313190,0.70568695,2980.1,2979.7,2.4439]
[1767103313382,2.409,2980.4,2979.7,2.4439]
[1767103313582,2.409,2980.4,2979.7,3.02401199]
[1767103313779,0.88,2980.4,2979.7,3.02401199]
[1767103313979,0.88,2980.4,2979.8,2.4439]
[1767103314788,6.64426783,2980.4,2979.8,0.62989471]
[1767103315109,2.409,2980.3,2979.5,2.314]
[1767103316017,2.409,2980.3,2979.6,0.03356155]
[1767103316211,2.409,2980.3,2979.5,5.67026048]
[1767103316518,2.409,2980.3,2979.6,0.56702605]
[1767103317016,2.409,2980.3,2979.5,5.67026738]
[1767103317186,2.409,2980.3,2979.6,3.35608056]
[1767103317515,1.00685838,2981.7,2979.6,3.35608056]
[1767103317516,2.409,2981.5,2979.7,2.34656042]
[1767103317713,2.409,2981.5,2979.9,2.313]
[1767103317917,6.70780788,2981.6,2980.1,2.313]
[1767103317918,2.3571,2981.3,2980.1,2.313]
[1767103318283,2.3571,2981.3,2980.2,6.71095898]
[1767103318284,3.2371,2981.3,2980.2,6.71095898]
[1767103318487,0.88,2981.3,2980.3,2.313]
[1767103318990,2.3571,2981.5,2980.3,2.313]
[1767103319314,2.3571,2981.7,2980.3,2.32640123]
[1767103319619,0.88,2981.6,2980.5,2.313]
[1767103319815,2.3571,2981.7,2980.5,2.313]
[1767103320118,0.88,2981.6,2980.5,2.313]
[1767103320317,2.3571,2982.2,2980.5,2.313]
[1767103320619,2.3571,2982.0,2980.7,2.313]
[1767103320817,2.3571,2982.0,2980.9,2.313]
[1767103321022,2.3571,2981.9,2980.9,2.313]
[1767103321202,3.2371,2981.9,2980.9,2.313]
[1767103321418,2.3571,2981.9,2980.9,2.313]
[1767103321593,2.3571,2982.5,2980.9,2.313]
[1767103321794,2.92809731,2982.4,2981.1,2.313]
[1767103322133,2.3571,2982.3,2981.1,2.313]
[1767103322294,2.3571,2982.2,2981.1,2.313]
[1767103322494,2.3571,2982.2,2981.3,2.313]
[1767103322912,2.3571,2982.6,2981.3,2.313]
[1767103323122,2.3571,2982.6,2981.5,2.313]
[1767103323625,2.3571,2982.6,2981.4,1.23760619]
[1767103323626,2.3571,2982.5,2981.4,1.23760619]
[1767103323845,3.9,2982.4,2981.2,2.313]
[1767103324015,2.3571,2982.3,2981.2,2.313]
[1767103324210,0.88,2982.2,2981.2,2.313]
[1767103324633,0.88,2982.2,2981.4,2.313]
[1767103324937,0.88,2982.2,2981.5,2.313]
[1767103325324,2.3571,2982.3,2981.5,2.313]
[1767103325527,0.88,2982.2,2981.5,2.313]
[1767103326533,0.88,2982.2,2981.5,5.66694231]
[1767103326725,0.88,2982.2,2981.6,2.313]
[1767103327514,2.3571,2982.3,2981.6,2.313]
[1767103327732,0.88,2982.2,2981.6,2.313]
[1767103328037,0.881,2982.2,2981.6,2.313]
[1767103328234,0.001,2982.2,2981.6,3.24192187]
[1767103328437,2.3571,2983.3,2981.7,2.312]
[1767103328640,2.3571,2983.2,2981.9,2.312]
[1767103328811,2.3571,2983.0,2981.9,2.312]
[1767103329139,2.3571,2983.0,2981.6,0.92892187]
[1767103329351,2.3571,2982.8,2981.6,4.57483755]
[1767103329554,2.3571,2982.8,2981.7,4.57479056]
[1767103329752,2.3571,2982.8,2981.8,1.221]
[1767103330051,0.88,2982.7,2981.8,1.221]
[1767103330257,3.2371,2982.7,2981.8,1.221]
[1767103330460,0.32371,2982.6,2981.8,1.221]
[1767103330632,2.68081,2982.6,2981.9,4.57456651]
[1767103331155,2.68081,2982.6,2981.9,1.221]
[1767103331756,0.85003037,2982.5,2981.9,1.221]
[1767103332054,2.3571,2982.4,2981.9,1.221]
[1767103332348,2.71018404,2982.4,2981.4,1.221]
[1767103332543,3.35311672,2982.3,2981.4,1.221]
[1767103332719,2.3571,2982.2,2981.4,1.221]
[1767103332921,2.3381192,2982.2,2981.4,1.221]
[1767103333218,2.3571,2982.0,2981.4,1.221]
[1767103333422,2.3571,2982.3,2981.5,1.24]
[1767103333644,0.88,2982.4,2981.7,1.24]
[1767103334443,0.86002025,2982.4,2981.6,1.24]
[1767103334644,0.8400405,2982.4,2981.6,1.24]
[1767103334850,3.1971405,2982.4,2981.7,1.24]
[1767103335420,3.1981405,2982.4,2981.7,1.24]
[1767103335745,2.3571,2982.3,2981.4,1.24]
[1767103336123,2.3571,2982.3,2981.5,4.59401288]
[1767103336324,2.3571,2982.3,2981.5,1.24]
[1767103336555,2.3571,2982.3,2981.3,3.35422035]
[1767103336746,2.3571,2982.3,2981.2,1.24]
[1767103336928,2.3404,2982.1,2981.2,1.24]
[1767103337248,2.3404,2982.1,2981.3,3.35422354]
[1767103338871,2.3404,2982.1,2981.2,4.59432151]
[1767103339054,2.3404,2982.0,2981.2,4.59433742]
[1767103339551,2.31142936,2981.8,2980.7,1.269]
[1767103339848,2.31142936,2981.8,2981.0,1.269]
[1767103340056,2.31142936,2981.8,2981.0,4.62357252]
[1767103341028,0.88,2981.7,2981.0,4.62357252]
[1767103341424,3.2204,2981.7,2981.0,4.62357252]
[1767103341624,3.2204,2981.7,2981.1,1.269]
[1767103342563,2.66244,2981.6,2980.6,1.269]
[1767103342725,2.66244,2981.6,2979.8,0.01340123]
[1767103342726,2.66244,2981.6,2980.5,1.269]
[1767103342925,2.66244,2981.6,2980.6,1.269]
[1767103342926,2.3404,2981.4,2980.6,1.269]
[1767103343153,0.88,2981.3,2980.6,1.269]
[1767103344461,2.3404,2981.2,2980.6,1.269]
[1767103344665,2.66244,2981.2,2980.3,4.62431624]
[1767103344822,2.66244,2981.2,2980.4,3.35525056]
[1767103345029,2.66244,2981.2,2980.3,1.269]
[1767103345030,2.3404,2981.1,2980.3,1.269]
[1767103345554,2.3404,2981.1,2980.0,4.65820894]
[1767103345851,2.3404,2981.0,2980.1,0.80139966]
[1767103346650,2.3404,2981.0,2980.0,1.269]
[1767103347059,2.3404,2981.0,2979.8,3.3579044]
[1767103347060,2.3404,2980.8,2979.8,1.271]
[1767103347257,2.3404,2980.6,2979.9,1.30255817]
[1767103347457,2.3404,2980.6,2980.0,1.269]
[1767103347754,3.2204,2980.6,2980.1,1.269]
[1767103348060,2.3404,2980.5,2979.8,1.271]
[1767103348247,2.3404,2980.5,2979.9,1.269]
[1767103349068,0.88,2980.6,2979.8,0.80031369]
[1767103349069,2.3404,2980.3,2979.8,0.002]
[1767103349427,2.3404,2980.3,2978.6,0.002]
[1767103349629,2.3404,2979.8,2978.5,0.01340123]
[1767103349924,2.3404,2979.6,2978.8,1.31420123]
[1767103350168,2.3404,2979.6,2978.8,1.3142]
[1767103350330,2.3404,2979.6,2978.4,1.3152]
[1767103350524,2.3404,2979.6,2978.5,0.03357394]
[1767103350947,2.3404,2979.2,2978.4,1.3152]
[1767103351151,2.3404,2979.2,2978.4,0.001]
[1767103351428,2.3404,2979.1,2977.8,1.3142]
[1767103351652,2.3404,2978.9,2977.8,1.3142]
[1767103352359,2.3404,2978.9,2977.4,0.002]
[1767103352882,2.3404,2978.6,2977.4,0.01540123]
[1767103353036,2.3404,2978.6,2977.4,4.69319775]
[1767103353037,2.3404,2978.4,2977.4,4.69319775]
[1767103353232,0.88,2978.3,2977.7,1.3192]
[1767103353542,2.9404,2978.7,2977.8,1.33260123]
[1767103353738,0.881,2978.6,2978.0,0.01340123]
[1767103354157,3.2214,2978.6,2977.9,1.3192]
[1767103354350,2.3404,2978.5,2977.5,1.33260123]
[1767103354547,2.3404,2978.5,2977.7,1.33260123]
[1767103354746,0.881,2978.4,2977.9,1.3192]
[1767103355066,0.881,2978.7,2978.0,0.03357958]
[1767103355277,0.881,2978.7,2977.9,1.3192]
[1767103355479,3.2214,2978.7,2977.9,1.3192]
[1767103355638,3.2214,2978.7,2978.0,0.50131512]
[1767103356235,3.2214,2978.7,2978.0,0.46773554]
[1767103356543,3.2214,2978.7,2977.7,0.04698419]
[1767103356544,2.3404,2978.3,2977.4,0.002]
[1767103356761,2.3404,2978.1,2977.4,0.002]
[1767103356964,2.3404,2977.9,2977.4,0.002]
[1767103357360,0.881,2977.8,2977.4,0.002]
[1767103357558,2.3404,2977.7,2976.9,2.3551]
[1767103357733,6.77117622,2978.0,2977.0,2.36850123]
[1767103357734,5.75361786,2978.0,2977.0,2.36850123]
[1767103357936,5.75361786,2978.0,2977.1,2.92786954]
[1767103358143,2.3956595,2978.0,2977.1,2.92786954]
[1767103358339,3.2766595,2978.0,2977.2,2.36850123]
[1767103358542,2.3956595,2978.0,2977.2,2.3551]
[1767103358765,3.2766595,2978.0,2977.2,2.3551]
[1767103358956,3.2766595,2978.0,2977.4,0.002]
[1767103359155,0.0552595,2978.0,2977.4,0.002]
[1767103360573,0.0552595,2978.0,2977.4,2.3571]
[1767103360763,2.3404,2978.4,2977.4,2.37050123]
[1767103361076,2.3404,2978.4,2977.6,2.3551]
[1767103361277,2.3404,2978.3,2977.7,0.57135304]
[1767103361484,2.3404,2978.3,2977.4,0.002]
[1767103361679,6.2404,2978.3,2977.4,2.3571]
[1767103361852,6.2404,2978.3,2977.4,5.71573173]
[1767103362484,6.2404,2978.3,2977.4,0.002]
[1767103362485,2.3404,2978.2,2977.4,0.002]
[1767103362652,0.881,2978.1,2977.4,0.002]
[1767103362848,2.3404,2978.2,2977.4,2.3571]
[1767103363053,2.3404,2978.2,2977.5,2.62022271]
[1767103363465,0.04196743,2978.5,2977.6,2.3551]
[1767103363466,0.92297025,2978.3,2977.6,2.3551]
[1767103364982,2.3404,2978.2,2977.5,0.26512271]
[1767103365188,5.74024757,2978.1,2977.4,0.002]
[1767103366182,2.38157307,2978.1,2977.4,0.002]
[1767103367192,2.38157307,2978.1,2977.4,5.69152247]
[1767103367495,2.38157307,2978.1,2977.5,0.002]
[1767103367695,2.38157307,2978.1,2977.5,2.3329]
[1767103367896,2.38157307,2978.1,2977.6,0.56935225]
[1767103368474,2.3396,2978.0,2977.5,0.002]
[1767103368676,2.3396,2977.8,2977.4,0.002]
[1767103368877,2.3396,2977.8,2976.8,3.37609625]
[1767103368878,2.3396,2977.8,2976.8,2.3309]
[1767103369391,2.3396,2977.8,2976.5,2.3309]
[1767103369392,2.3396,2977.6,2976.5,2.3309]
[1767103369603,2.3396,2977.4,2976.5,2.3309]
[1767103369778,2.3396,2977.4,2976.6,0.23329]
[1767103370181,2.3396,2977.4,2976.4,0.002]
[1767103370401,2.3396,2977.4,2976.3,3.35979831]
[1767103370402,2.3396,2977.4,2976.2,0.002]
[1767103370601,2.3396,2977.4,2976.0,5.6910955]
[1767103370900,2.3396,2977.2,2975.9,3.36028266]
[1767103371200,2.3396,2977.5,2976.6,2.3309]
[1767103371370,3.2206,2977.5,2976.7,2.56399]
[1767103371695,2.3396,2977.4,2976.7,2.56399]
[1767103372100,36.71433846,2978.7,2976.7,2.56399]
[1767103372298,2.38156602,2978.6,2976.9,2.3309]
[1767103372474,2.3396,2978.4,2976.9,2.3309]
[1767103372670,2.3396,2978.2,2977.1,2.3309]
[1767103372872,2.3396,2978.0,2977.0,0.23477269]
[1767103373071,2.3396,2977.8,2977.0,0.23477269]
[1767103373271,0.0419787,2977.7,2976.9,2.3309]
[1767103373482,2.3396,2977.8,2977.0,2.3309]
[1767103373679,2.3396,2977.8,2977.1,0.01681726]
[1767103373981,0.0419787,2977.7,2977.1,2.3309]
[1767103374401,2.3396,2977.8,2977.1,2.3309]
[1767103374700,2.3396,2977.8,2977.2,0.24990671]
[1767103375101,10.30627555,2979.2,2977.2,0.24990671]
[1767103375102,0.04197447,2978.0,2977.2,2.3309]
[1767103375407,0.9,2978.1,2977.4,2.3309]
[1767103375808,0.04197447,2978.0,2977.4,2.3309]
[1767103377574,2.3396,2977.9,2977.0,6.57096692]
[1767103377808,3.39997304,2978.0,2977.1,0.65709669]
[1767103377809,2.3396,2977.7,2977.1,0.65709669]
[1767103377970,2.38158011,2977.6,2976.7,0.23309]
[1767103378174,2.38158011,2977.6,2976.7,2.56399]